bitfinex/quotes_BTCUSD_20250211
["timestamp","ask_amount","ask_price","bid_price","bid_amount"]
[1739283457209,0.154598,97026.0,97013.0,0.154618]
[1739283457819,0.154598,97026.0,97012.0,0.0457]
[1739283458016,0.206125,97029.0,97012.0,0.0457]
[1739283458240,0.0001066,97030.0,97010.0,0.22245104]
[1739283458439,0.206123,97029.0,97010.0,0.22245104]
[1739283458680,0.154614,97016.0,97003.0,0.1253]
[1739283458914,0.15461,97019.0,97003.0,0.22780365]
[1739283459105,0.20614,97022.0,97005.0,0.15463]
[1739283459252,0.206134,97024.0,97005.0,0.15463]
[1739283459459,0.15461,97019.0,97006.0,0.154629]
[1739283459660,0.0011066,97030.0,97003.0,0.22780365]
[1739283459878,0.206136,97023.0,97010.0,0.14285104]
[1739283460099,0.02948946,97022.0,97010.0,0.14285104]
[1739283460298,0.206136,97023.0,97010.0,0.14285104]
[1739283460477,0.206128,97027.0,97010.0,0.14285104]
[1739283460478,0.02092798,97020.0,97010.0,0.14285104]
[1739283461796,0.0912052,97014.0,97010.0,0.14285104]
[1739283461999,0.0912052,97014.0,97008.0,0.154624]
[1739283462417,0.0912052,97014.0,97010.0,0.006]
[1739283462981,0.0912052,97014.0,97010.0,0.002]
[1739283463227,0.0912052,97014.0,97008.0,0.162625]
[1739283463626,0.0912052,97014.0,97013.0,0.154618]
[1739283464831,0.0912052,97017.0,97013.0,0.154618]
[1739283465038,0.0912052,97017.0,97015.0,0.154614]
[1739283465615,0.19632468,97033.0,97015.0,0.154614]
[1739283465827,0.19632468,97033.0,97020.0,0.14285104]
[1739283466043,0.154588,97032.0,97020.0,0.14285104]
[1739283466196,0.22107029,97038.0,97020.0,0.14285104]
[1739283466400,0.029543,97037.0,97020.0,0.14285104]
[1739283466644,0.02025572,97021.0,97020.0,0.14285104]
[1739283466844,0.02025572,97021.0,97016.0,0.154612]
[1739283467784,0.02025572,97021.0,97015.0,0.15474829]
[1739283468582,0.02025572,97021.0,97015.0,0.00013329]
[1739283469217,0.004,97032.0,97015.0,0.10263694]
[1739283469421,0.002,97033.0,97022.0,0.14285104]
[1739283469632,0.154571,97043.0,97023.0,0.206136]
[1739283469839,0.003,97037.0,97030.0,0.14285104]
[1739283470257,0.154572,97042.0,97030.0,0.14285104]
[1739283470468,0.002,97032.0,97030.0,0.14285104]
[1739283470884,0.0001065,97053.0,97031.0,0.18360365]
[1739283471051,0.003,97043.0,97034.0,0.154584]
[1739283471263,0.154558,97051.0,97034.0,0.154584]
[1739283471992,0.154558,97051.0,97033.0,0.154586]
[1739283472196,0.02953132,97050.0,97034.0,0.154584]
[1739283472397,0.002,97037.0,97032.0,0.206117]
[1739283472606,0.002,97037.0,97034.0,0.154584]
[1739283472752,0.002,97042.0,97034.0,0.154584]
[1739283472955,0.002,97042.0,97034.0,0.155584]
[1739283473171,0.002,97042.0,97034.0,0.001]
[1739283473396,0.002,97042.0,97035.0,0.154581]
[1739283473601,0.01479324,97053.0,97033.0,0.206114]
[1739283473815,0.001,97037.0,97036.0,0.154581]
[1739283474168,0.001,97037.0,97035.0,0.154582]
[1739283474366,0.001,97037.0,97033.0,0.154586]
[1739283474621,0.02069158,97037.0,97034.0,0.154584]
[1739283475199,0.02069158,97037.0,97034.0,0.154583]
[1739283475480,0.02069158,97037.0,97032.0,0.10250365]
[1739283475689,0.02069158,97037.0,97034.0,0.154584]
[1739283475887,0.02069158,97037.0,97036.0,0.004]
[1739283476494,0.02069158,97037.0,97032.0,0.10250365]
[1739283476701,0.02069158,97037.0,97033.0,0.206115]
[1739283476936,0.02069158,97037.0,97034.0,0.002]
[1739283477192,0.02069158,97037.0,97034.0,0.156584]
[1739283477386,0.02069158,97037.0,97034.0,0.154584]
[1739283477626,0.02069158,97037.0,97036.0,0.006]
[1739283478765,0.02069158,97037.0,97036.0,0.002]
[1739283478973,0.02069158,97037.0,97033.0,0.154586]
[1739283479174,0.02069158,97037.0,97034.0,0.004]
[1739283479599,0.02069158,97037.0,97033.0,0.154586]
[1739283479803,0.02069158,97037.0,97036.0,0.006]
[1739283480141,0.02069158,97037.0,97036.0,0.004]
[1739283480297,0.02069158,97037.0,97034.0,0.156584]
[1739283480495,0.02069158,97037.0,97034.0,0.002]
[1739283480695,0.09147668,97045.0,97034.0,0.006]
[1739283480897,0.02951639,97044.0,97035.0,0.154582]
[1739283481125,0.09147668,97045.0,97035.0,0.154582]
[1739283481494,0.02950684,97044.0,97034.0,0.006]
[1739283481819,0.02950684,97046.0,97034.0,0.002]
[1739283482227,0.0001066,97037.0,97034.0,0.002]
[1739283482678,0.0001066,97037.0,97036.0,0.154581]
[1739283482878,0.0001066,97037.0,97035.0,0.154583]
[1739283483077,0.0001066,97037.0,97034.0,0.208112]
[1739283483275,0.0001066,97037.0,97034.0,0.002]
[1739283483782,0.0001066,97037.0,97032.0,0.25709065]
[1739283483783,0.0001066,97037.0,97036.0,0.004]
[1739283484153,0.0001066,97037.0,97036.0,0.006]
[1739283484375,0.0001066,97037.0,97036.0,0.004]
[1739283485521,0.0001066,97037.0,97034.0,0.002]
[1739283485943,0.0001066,97037.0,97034.0,0.004]
[1739283486145,0.0001066,97037.0,97036.0,0.002]
[1739283486591,0.0001066,97037.0,97034.0,0.003]
[1739283486880,0.0001066,97037.0,97034.0,0.004]
[1739283487301,0.154582,97036.0,97022.0,0.0774]
[1739283487496,0.0001066,97037.0,97036.0,0.004]
[1739283487700,0.0001066,97037.0,97036.0,0.003]
[1739283489294,0.01419342,97037.0,97036.0,0.003]
[1739283489488,0.01419342,97037.0,97022.0,0.0774]
[1739283489489,0.0001066,97037.0,97022.0,0.0774]
[1739283489697,0.0011066,97037.0,97034.0,0.003]
[1739283490098,0.0011066,97037.0,97023.0,0.154601]
[1739283490302,0.0011066,97037.0,97022.0,0.0774]
[1739283490531,0.0031066,97037.0,97025.0,0.154598]
[1739283490726,0.0031066,97037.0,97024.0,0.1546]
[1739283490976,0.0001066,97037.0,97024.0,0.1546]
[1739283491303,0.0021066,97037.0,97024.0,0.1546]
[1739283491511,0.0021066,97037.0,97022.0,0.283536]
[1739283491845,0.0021066,97037.0,97023.0,0.154602]
[1739283492474,0.0031066,97037.0,97024.0,0.1546]
[1739283492641,0.0001066,97037.0,97025.0,0.154598]
[1739283492850,0.0021066,97037.0,97023.0,0.154602]
[1739283493088,0.0031066,97037.0,97023.0,0.154602]
[1739283493294,0.0001066,97037.0,97026.0,0.154597]
[1739283493713,0.0011066,97037.0,97026.0,0.154597]
[1739283493989,0.0011066,97037.0,97022.0,0.0774]
[1739283494196,0.05242089,97101.0,97022.0,0.0774]
[1739283494423,0.001,97037.0,97033.0,0.00022386]
[1739283495577,0.154567,97045.0,97033.0,0.00022386]
[1739283496202,0.154564,97048.0,97033.0,0.00022386]
[1739283496425,0.01435791,97051.0,97033.0,0.00022386]
[1739283496627,0.2147795,97053.0,97033.0,0.00022386]
[1739283496838,0.003,97045.0,97033.0,0.00022386]
[1739283497031,0.006,97045.0,97033.0,0.00022386]
[1739283497268,0.003,97045.0,97033.0,0.00022386]
[1739283498263,0.09444379,97045.0,97033.0,0.00022386]
[1739283498644,0.09144379,97045.0,97033.0,0.00022386]
[1739283499283,0.09444379,97045.0,97033.0,0.00022386]
[1739283499912,0.09444379,97045.0,97035.0,0.154583]
[1739283500127,0.09444379,97045.0,97034.0,0.0769]
[1739283500343,0.09444379,97045.0,97035.0,0.154583]
[1739283500761,0.09744379,97045.0,97035.0,0.154583]
[1739283500968,0.09744379,97045.0,97036.0,0.154581]
[1739283501167,0.003,97045.0,97036.0,0.154581]
[1739283502047,0.003,97045.0,97035.0,0.154583]
[1739283502425,0.02100381,97047.0,97034.0,0.0769]
[1739283502639,0.003,97045.0,97036.0,0.15458]
[1739283502852,0.006,97045.0,97037.0,0.154579]
[1739283503055,0.006,97045.0,97037.0,0.199579]
[1739283503211,0.006,97045.0,97037.0,0.045]
[1739283504072,0.02955426,97044.0,97037.0,0.045]
[1739283504260,0.003,97045.0,97037.0,0.045]
[1739283504500,0.02955426,97044.0,97037.0,0.045]
[1739283505379,0.02955426,97044.0,97034.0,0.0769]
[1739283505575,0.02955426,97044.0,97033.0,0.00022386]
[1739283506002,0.15657,97044.0,97033.0,0.00022386]
[1739283506206,0.154584,97034.0,97033.0,0.00022386]
[1739283506427,0.02955426,97034.0,97033.0,0.00022386]
[1739283506832,0.18413826,97034.0,97033.0,0.00022386]
[1739283507051,0.25708765,97034.0,97033.0,0.00022386]
[1739283507254,0.28664191,97034.0,97033.0,0.00022386]
[1739283507675,0.28664191,97034.0,97033.0,0.00222386]
[1739283507888,0.30075016,97034.0,97033.0,0.00222386]
[1739283509042,0.30075016,97034.0,97033.0,0.00022386]
[1739283512221,0.30275016,97034.0,97033.0,0.00022386]
[1739283512422,0.30075016,97034.0,97033.0,0.00022386]
[1739283512856,0.30275016,97034.0,97033.0,0.00022386]
[1739283513515,0.30775016,97034.0,97033.0,0.00022386]
[1739283514029,0.30275016,97034.0,97033.0,0.00022386]
[1739283514279,0.30775016,97034.0,97033.0,0.00022386]
[1739283514784,0.154589,97032.0,97016.0,9.568e-05]
[1739283515030,0.02955426,97031.0,97020.0,0.154606]
[1739283515268,0.02955426,97033.0,97018.0,0.154609]
[1739283515499,0.02955426,97032.0,97018.0,0.15461]
[1739283515737,0.02955426,97032.0,97017.0,0.0775]
[1739283515949,0.02955426,97031.0,97019.0,0.154607]
[1739283516130,0.02955426,97031.0,97020.0,0.0488]
[1739283516366,0.01437181,97035.0,97022.0,0.154603]
[1739283516547,0.001,97033.0,97022.0,0.154603]
[1739283516794,0.02952875,97032.0,97022.0,0.154602]
[1739283517018,0.02952875,97032.0,97021.0,0.154605]
[1739283517198,0.02952875,97032.0,97020.0,0.254941]
[1739283517439,0.001,97031.0,97022.0,0.154603]
[1739283517649,0.001,97031.0,97022.0,0.154602]
[1739283517873,0.001,97033.0,97022.0,0.154602]
[1739283518087,0.001,97033.0,97022.0,0.00022386]
[1739283518508,0.02113497,97027.0,97022.0,0.00022386]
[1739283518929,0.154602,97023.0,97022.0,0.00022386]
[1739283519987,0.154602,97023.0,97022.0,0.00122386]
[1739283520646,0.154602,97023.0,97022.0,0.00022386]
[1739283520851,0.154602,97023.0,97022.0,0.00422386]
[1739283522149,0.154602,97023.0,97022.0,0.00022386]
[1739283522579,0.154602,97023.0,97022.0,0.00322386]
[1739283524490,0.154602,97023.0,97022.0,0.00145707]
[1739283526773,0.02113497,97027.0,97022.0,0.00145707]
[1739283527295,0.154602,97023.0,97022.0,0.00145707]
[1739283528582,0.154608,97020.0,97017.0,0.0775]
[1739283529617,0.154608,97020.0,97017.0,0.0825]
[1739283529815,0.02113497,97027.0,97017.0,0.0825]
[1739283530024,0.15461,97018.0,97017.0,0.0825]
[1739283530465,0.206144,97020.0,97017.0,0.0825]
[1739283530673,0.24610859,97019.0,97017.0,0.0825]
[1739283530877,0.09149959,97019.0,97017.0,0.0825]
[1739283531430,0.09149959,97019.0,97017.0,0.0775]
[1739283532594,0.09149959,97019.0,97017.0,0.0825]
[1739283533885,0.09149959,97019.0,97017.0,0.23711]
[1739283534087,0.206131,97026.0,97017.0,0.23711]
[1739283534289,0.02113497,97027.0,97020.0,0.154607]
[1739283534529,0.02113497,97027.0,97017.0,0.288647]
[1739283534530,0.01424853,97043.0,97022.0,0.1273]
[1739283534728,0.02097484,97033.0,97028.0,0.154593]
[1739283534928,0.02097484,97033.0,97027.0,0.154594]
[1739283536234,0.02597484,97033.0,97027.0,0.154594]
[1739283536638,0.01443115,97044.0,97023.0,0.10250365]
[1739283536863,0.0295365,97043.0,97025.0,0.0776]
[1739283537056,0.0295365,97043.0,97036.0,0.0776]
[1739283537579,0.0001066,97044.0,97036.0,0.0756]
[1739283537983,0.02113905,97043.0,97036.0,0.0756]
[1739283538800,0.03013905,97043.0,97036.0,0.0756]
[1739283539285,0.02313905,97043.0,97036.0,0.0756]
[1739283539731,0.02713905,97043.0,97036.0,0.0756]
[1739283540797,0.09151741,97040.0,97037.0,0.154579]
[1739283541001,0.09151741,97040.0,97038.0,0.0479]
[1739283541526,0.09151741,97040.0,97039.0,0.154577]
[1739283542067,0.09351741,97040.0,97039.0,0.154577]
[1739283542493,0.09151741,97040.0,97038.0,0.0499]
[1739283542703,0.09151741,97040.0,97038.0,0.0479]
[1739283542907,0.09151741,97040.0,97039.0,0.003]
[1739283543307,0.09151741,97040.0,97039.0,0.157577]
[1739283543921,0.09151741,97040.0,97039.0,0.158577]
[1739283544551,0.09151741,97040.0,97039.0,0.26108065]
[1739283544720,0.09151741,97040.0,97039.0,0.62900975]
[1739283544939,0.07090741,97040.0,97039.0,1.17708108]
[1739283545138,0.02090741,97040.0,97039.0,1.17708108]
[1739283545363,0.0001066,97043.0,97042.0,0.304572]
[1739283545516,0.0001066,97044.0,97043.0,0.32757]
[1739283545715,0.0001066,97044.0,97043.0,0.55557365]
[1739283547829,0.0001066,97044.0,97043.0,0.57057365]
[1739283548045,0.0011066,97044.0,97043.0,0.57457365]
[1739283549479,0.0001065,97081.0,97073.0,0.154522]
[1739283549746,0.0001065,97081.0,97073.0,0.39797785]
[1739283549990,0.0001065,97081.0,97073.0,0.40552565]
[1739283550993,0.02679993,97074.0,97073.0,0.40552565]
[1739283551634,0.02679993,97074.0,97073.0,0.42272948]
[1739283552072,0.02679993,97074.0,97073.0,0.43772948]
[1739283552460,0.02679993,97074.0,97073.0,0.69623313]
[1739283552461,0.02779993,97074.0,97073.0,0.69623313]
[1739283552819,0.02779993,97074.0,97073.0,0.59372948]
[1739283554252,0.02679993,97074.0,97073.0,0.58772948]
[1739283554448,0.02679993,97074.0,97073.0,0.57272948]
[1739283554650,0.02679993,97074.0,97073.0,0.59372948]
[1739283554896,0.02679993,97074.0,97073.0,0.58772948]
[1739283555064,0.02679993,97074.0,97073.0,1.21633313]
[1739283555065,9.3e-07,97074.0,97073.0,1.21633313]
[1739283555263,9.3e-07,97074.0,97073.0,1.22633313]
[1739283555466,9.3e-07,97074.0,97073.0,1.24133313]
[1739283555929,9.3e-07,97074.0,97073.0,1.23433313]
[1739283556274,0.0001066,97083.0,97073.0,1.23433313]
[1739283556275,6e-07,97083.0,97082.0,0.01]
[1739283556532,0.0001066,97105.0,97090.0,0.01]
[1739283556754,0.0001066,97105.0,97098.0,0.42645702]
[1739283556901,0.0001066,97105.0,97098.0,0.57645702]
[1739283557078,0.0001066,97105.0,97098.0,0.67896067]
[1739283558124,0.0001066,97105.0,97098.0,0.69396067]
[1739283558334,0.0001066,97105.0,97098.0,1.23806067]
[1739283558558,0.0001066,97105.0,97098.0,1.25506067]
[1739283559375,3.9e-07,97100.0,97099.0,0.193]
[1739283559602,0.0001066,97105.0,97104.0,0.337473]
[1739283559825,0.00055063,97105.0,97104.0,0.56217665]
[1739283560030,0.00055063,97105.0,97104.0,0.57217665]
[1739283560231,0.00055063,97105.0,97104.0,0.56217665]
[1739283561440,0.00055063,97105.0,97104.0,0.57217665]
[1739283561684,0.0001066,97113.0,97106.0,0.31447]
[1739283561884,0.00023973,97107.0,97106.0,0.56217365]
[1739283562235,0.00023973,97107.0,97106.0,0.57217365]
[1739283563004,0.00023973,97107.0,97106.0,0.56217365]
[1739283563208,0.00023973,97107.0,97106.0,0.57217365]
[1739283563410,0.00023973,97107.0,97106.0,0.65877448]
[1739283564285,0.00023973,97107.0,97106.0,0.67377448]
[1739283564690,0.00023973,97107.0,97106.0,0.68077448]
[1739283564917,0.00023973,97107.0,97106.0,1.19987448]
[1739283565118,0.00023973,97107.0,97106.0,1.21487448]
[1739283565320,0.0002,97149.0,97106.0,1.21487448]
[1739283565321,0.02777852,97164.0,97109.0,0.01]
[1739283565532,9.608e-05,97164.0,97144.0,0.154409]
[1739283565754,0.154383,97161.0,97145.0,0.10250365]
[1739283565957,0.154383,97161.0,97128.0,0.0766]
[1739283565958,0.154394,97154.0,97135.0,0.154422]
[1739283566156,0.0812,97162.0,97138.0,0.154418]
[1739283566405,0.154389,97157.0,97139.0,0.154417]
[1739283566615,0.0812,97162.0,97143.0,0.15441]
[1739283566837,0.0812,97162.0,97145.0,0.154407]
[1739283567048,0.02110988,97164.0,97151.0,0.205865]
[1739283567274,0.02110988,97164.0,97152.0,0.10250365]
[1739283567501,0.02110988,97164.0,97153.0,0.20586]
[1739283567751,0.02110988,97164.0,97155.0,0.154391]
[1739283569080,9.608e-05,97164.0,97155.0,0.154391]
[1739283569439,9.608e-05,97164.0,97153.0,0.25689765]
[1739283569668,9.608e-05,97164.0,97153.0,0.10250365]
[1739283570068,9.608e-05,97164.0,97154.0,0.154393]
[1739283570497,0.0001066,97157.0,97155.0,0.154392]
[1739283571415,0.0001066,97157.0,97154.0,0.001]
[1739283571624,0.0001066,97157.0,97153.0,0.25689865]
[1739283571842,0.02910268,97171.0,97155.0,0.006]
[1739283572264,0.18347068,97171.0,97155.0,0.006]
[1739283572527,0.02910268,97171.0,97155.0,0.006]
[1739283572730,0.154378,97164.0,97155.0,0.006]
[1739283573065,0.10250365,97170.0,97155.0,0.006]
[1739283573252,0.154382,97162.0,97143.0,0.154411]
[1739283573385,0.10250365,97170.0,97143.0,9.608e-05]
[1739283573596,0.154384,97160.0,97154.0,0.006]
[1739283573789,0.205826,97169.0,97155.0,0.002]
[1739283573998,0.154382,97162.0,97146.0,0.154406]
[1739283574389,0.02910268,97171.0,97143.0,0.00309608]
[1739283574596,0.154373,97168.0,97151.0,0.154397]
[1739283574793,0.02910268,97171.0,97144.0,0.13165897]
[1739283575109,0.15413515,97165.0,97149.0,0.154401]
[1739283575314,0.154371,97169.0,97148.0,0.154403]
[1739283575682,0.0107,97170.0,97147.0,0.0777]
[1739283575900,0.0107,97170.0,97150.0,0.154399]
[1739283575901,0.154375,97166.0,97150.0,0.154399]
[1739283576127,0.154371,97169.0,97148.0,0.0484]
[1739283576367,0.15437,97169.0,97148.0,0.0484]
[1739283576603,0.154367,97171.0,97154.0,0.154393]
[1739283576843,0.2059266,97172.0,97154.0,0.154393]
[1739283577081,0.154367,97171.0,97151.0,0.205865]
[1739283577330,0.2059266,97172.0,97149.0,0.30837265]
[1739283577559,0.154369,97170.0,97150.0,0.1544]
[1739283577808,0.0001066,97172.0,97155.0,0.154391]
[1739283578045,0.154368,97171.0,97155.0,0.154391]
[1739283578291,0.154371,97169.0,97152.0,0.154396]
[1739283578530,0.154372,97168.0,97152.0,0.154396]
[1739283578780,0.0001066,97172.0,97137.0,0.0484]
[1739283578781,0.205822,97171.0,97137.0,0.0484]
[1739283579039,0.205837,97164.0,97139.0,0.20589]
[1739283579270,0.0512,97165.0,97138.0,0.08256914]
[1739283579487,0.10261025,97172.0,97141.0,0.205884]
[1739283579713,0.205824,97170.0,97144.0,0.154409]
[1739283579970,5.15250365,97169.0,97133.0,0.08256914]
[1739283580240,0.154408,97145.0,97133.0,0.08256914]
[1739283580477,0.154409,97144.0,97133.0,0.08256914]
[1739283583309,0.205875,97146.0,97133.0,0.08256914]
[1739283583310,0.0207683,97149.0,97133.0,0.08256914]
[1739283583514,0.0207683,97149.0,97143.0,0.00309608]
[1739283583719,0.154408,97145.0,97143.0,0.00309608]
[1739283583925,0.0207683,97149.0,97143.0,0.00309608]
[1739283584137,0.1751713,97149.0,97143.0,9.608e-05]
[1739283584271,0.0207683,97149.0,97143.0,9.608e-05]
[1739283584478,0.0217683,97149.0,97143.0,9.608e-05]
[1739283584687,0.16771201,97166.0,97143.0,9.608e-05]
[1739283584883,0.1544,97150.0,97143.0,9.608e-05]
[1739283585344,0.02086312,97148.0,97143.0,9.608e-05]
[1739283585791,0.02086312,97148.0,97143.0,0.00109608]
[1739283585990,0.17526712,97148.0,97143.0,0.00109608]
[1739283586166,0.154406,97146.0,97143.0,0.00109608]
[1739283586375,0.154409,97144.0,97143.0,0.00209608]
[1739283586830,0.154409,97145.0,97143.0,0.00109608]
[1739283586971,0.02086312,97148.0,97143.0,0.00109608]
[1739283587171,0.02086312,97148.0,97143.0,9.608e-05]
[1739283587808,0.154409,97144.0,97143.0,9.608e-05]
[1739283588167,0.154409,97144.0,97143.0,0.00109608]
[1739283588364,0.154409,97144.0,97143.0,9.608e-05]
[1739283590045,0.154409,97144.0,97143.0,0.00309608]
[1739283590236,0.154409,97144.0,97143.0,0.00409608]
[1739283591376,0.17197168,97144.0,97143.0,0.00409608]
[1739283591863,0.02086312,97148.0,97143.0,0.00409608]
[1739283592671,0.02086312,97148.0,97143.0,0.00109608]
[1739283593100,0.02086312,97148.0,97143.0,0.00131973]
[1739283593315,0.02086312,97148.0,97143.0,0.00031973]
[1739283593730,0.154405,97147.0,97143.0,0.00031973]
[1739283593946,0.02086312,97148.0,97143.0,0.00031973]
[1739283594779,0.02055264,97148.0,97143.0,0.00031973]
[1739283596578,0.0001065,97154.0,97153.0,0.154395]
[1739283596777,0.0001065,97154.0,97153.0,0.40512775]
[1739283596991,0.0001065,97154.0,97153.0,0.40409865]
[1739283598047,0.0001065,97154.0,97153.0,0.42192495]
[1739283598252,0.0001065,97154.0,97153.0,0.42592495]
[1739283599116,0.0001065,97154.0,97153.0,0.40809865]
[1739283599738,0.0001065,97154.0,97153.0,0.282595]
[1739283600381,0.0001065,97154.0,97153.0,0.292595]
[1739283600559,0.0001065,97154.0,97153.0,0.1382]
[1739283600810,0.0001065,97154.0,97153.0,0.1282]
[1739283601017,0.0001065,97154.0,97153.0,0.004]
[1739283601254,0.1545005,97154.0,97153.0,0.013]
[1739283601467,0.0001065,97154.0,97153.0,0.013]
[1739283602514,0.0001065,97154.0,97153.0,0.004]
[1739283602900,0.0001065,97154.0,97153.0,0.01]
[1739283603047,0.0001065,97154.0,97153.0,0.014]
[1739283603454,0.0001065,97154.0,97153.0,0.004]
[1739283603878,0.0001065,97154.0,97153.0,0.009]
[1739283604332,0.0001065,97154.0,97153.0,0.004]
[1739283604545,0.0001065,97154.0,97153.0,0.014]
[1739283605527,0.1545005,97154.0,97153.0,0.014]
[1739283605755,0.1545005,97154.0,97153.0,0.01]
[1739283606197,0.18404146,97154.0,97153.0,0.013]
[1739283606414,0.18404146,97154.0,97143.0,0.00031973]
[1739283606415,0.154401,97150.0,97143.0,0.00031973]
[1739283606633,0.154395,97153.0,97143.0,0.00031973]
[1739283606848,0.1544,97151.0,97148.0,0.00022365]
[1739283607062,0.154401,97150.0,97148.0,0.00022365]
[1739283607279,0.154402,97149.0,97148.0,0.00022365]
[1739283607485,0.1544,97150.0,97148.0,0.00022365]
[1739283607694,0.154402,97149.0,97148.0,0.00022365]
[1739283608139,0.17463171,97149.0,97148.0,0.00022365]
[1739283608373,0.17463171,97149.0,97148.0,0.00722365]
[1739283608799,0.42713536,97149.0,97148.0,0.00722365]
[1739283609015,0.45668222,97149.0,97148.0,0.00722365]
[1739283609245,5.50668222,97149.0,97148.0,0.00722365]
[1739283609458,5.50668222,97149.0,97148.0,0.00922365]
[1739283609665,5.50668222,97149.0,97148.0,0.00222365]
[1739283609880,5.53201863,97149.0,97148.0,0.00022365]
[1739283610291,5.53301863,97149.0,97148.0,0.00022365]
[1739283610496,5.53201863,97149.0,97148.0,0.00022365]
[1739283610924,5.51520222,97149.0,97148.0,0.00022365]
[1739283611340,5.51620222,97149.0,97148.0,0.00022365]
[1739283611559,5.54120222,97149.0,97148.0,0.00022365]
[1739283611769,5.55120222,97149.0,97148.0,0.00022365]
[1739283612178,5.56120222,97149.0,97148.0,0.00022365]
[1739283612808,5.55920222,97149.0,97148.0,0.00022365]
[1739283613012,5.56820222,97149.0,97148.0,0.00122365]
[1739283613235,0.02,97144.0,97143.0,3.8e-07]
[1739283613433,0.81739161,97144.0,97143.0,3.8e-07]
[1739283613631,0.84039161,97144.0,97143.0,3.8e-07]
[1739283614229,0.84939161,97144.0,97143.0,0.00100038]
[1739283614614,0.304449,97119.0,97118.0,0.03956951]
[1739283614858,0.40695265,97119.0,97118.0,0.03956951]
[1739283615039,0.154465,97109.0,97108.0,0.08256914]
[1739283615236,0.154471,97106.0,97101.0,0.046]
[1739283615898,0.15,97110.0,97101.0,0.046]
[1739283616102,0.154473,97105.0,97101.0,0.046]
[1739283616420,0.15,97118.0,97101.0,0.046]
[1739283616580,0.15,97115.0,97101.0,0.046]
[1739283616784,0.154473,97105.0,97101.0,0.046]
[1739283616990,0.15447,97106.0,97101.0,0.046]
[1739283617198,0.154472,97105.0,97101.0,0.046]
[1739283617417,0.155472,97105.0,97101.0,0.049]
[1739283617647,0.154473,97104.0,97101.0,0.053]
[1739283618425,0.154473,97104.0,97101.0,0.049]
[1739283618604,0.154473,97104.0,97101.0,0.04922365]
[1739283619551,0.154473,97104.0,97101.0,0.04622365]
[1739283619926,0.156473,97104.0,97101.0,0.05122365]
[1739283620122,0.002,97104.0,97101.0,0.05122365]
[1739283621750,0.002,97104.0,97102.0,0.0821]
[1739283621955,0.002,97104.0,97103.0,0.154475]
[1739283623132,0.001,97104.0,97102.0,0.0821]
[1739283623355,0.002,97104.0,97102.0,0.0881]
[1739283623577,0.001,97104.0,97102.0,0.0881]
[1739283623785,0.09136152,97110.0,97102.0,0.0821]
[1739283623991,0.09136152,97110.0,97102.0,0.236575]
[1739283624198,0.001,97104.0,97103.0,0.006]
[1739283624395,0.002,97104.0,97103.0,0.01]
[1739283624622,0.001,97104.0,97103.0,0.004]
[1739283624822,0.154462,97111.0,97102.0,0.236575]
[1739283625023,0.001,97104.0,97102.0,0.0921]
[1739283626005,0.154475,97103.0,97102.0,0.0921]
[1739283626228,0.154475,97103.0,97102.0,0.0821]
[1739283626838,0.001,97104.0,97102.0,0.0821]
[1739283627041,0.154475,97103.0,97102.0,0.0821]
[1739283627244,0.154475,97103.0,97102.0,0.0851]
[1739283627510,0.001,97103.0,97102.0,0.0881]
[1739283628164,0.155475,97103.0,97102.0,0.0881]
[1739283628543,0.002,97103.0,97102.0,0.0921]
[1739283629627,0.306475,97103.0,97102.0,0.01]
[1739283629826,5.45897865,97103.0,97102.0,0.01]
[1739283630241,5.50441108,97103.0,97102.0,0.01]
[1739283630653,5.50441108,97103.0,97101.0,0.00022365]
[1739283630654,0.304476,97102.0,97101.0,0.00022365]
[1739283630911,5.50938503,97102.0,97101.0,0.00022365]
[1739283632312,5.51138503,97102.0,97101.0,0.00022365]
[1739283633198,5.83368503,97102.0,97101.0,0.00022365]
[1739283633409,4.39738503,97102.0,97101.0,0.00022365]
[1739283633997,4.39838503,97102.0,97101.0,0.00022365]
[1739283634196,2.40257965,97102.0,97101.0,0.00022365]
[1739283634368,2.34627965,97102.0,97101.0,0.00022365]
[1739283634575,2.26637965,97102.0,97101.0,0.00022365]
[1739283635222,2.105876,97102.0,97101.0,0.00022365]
[1739283635378,0.629776,97102.0,97101.0,0.00022365]
[1739283635580,0.4753,97102.0,97093.0,0.00282364]
[1739283635782,0.304489,97094.0,97093.0,0.00326767]
[1739283636035,0.154488,97095.0,97093.0,0.00326767]
[1739283636234,0.205972,97101.0,97093.0,0.00326767]
[1739283636439,0.002,97102.0,97093.0,0.00326767]
[1739283636613,0.003,97102.0,97093.0,0.00326767]
[1739283636825,0.153,97102.0,97093.0,0.00326767]
[1739283637251,0.152,97102.0,97093.0,0.00326767]
[1739283637605,0.15,97102.0,97093.0,0.00326767]
[1739283638026,0.002,97102.0,97093.0,0.00326767]
[1739283638335,0.15,97103.0,97093.0,0.00326767]
[1739283638777,0.002,97102.0,97093.0,0.00326767]
[1739283639168,0.002,97102.0,97093.0,0.00426767]
[1739283639377,0.15,97103.0,97093.0,0.00426767]
[1739283639782,0.15,97103.0,97093.0,0.00326767]
[1739283640040,0.001,97102.0,97093.0,0.00626767]
[1739283640687,0.15,97103.0,97093.0,0.00326767]
[1739283640903,0.001,97103.0,97094.0,0.0791]
[1739283641115,0.15,97105.0,97094.0,0.0791]
[1739283641321,0.001,97102.0,97094.0,0.0791]
[1739283641499,0.15,97101.0,97094.0,0.0791]
[1739283641700,0.154479,97100.0,97094.0,0.0791]
[1739283641914,0.15,97101.0,97094.0,0.0791]
[1739283642529,0.001,97102.0,97094.0,0.0791]
[1739283643240,0.1511065,97103.0,97094.0,0.0791]
[1739283643375,0.001,97101.0,97094.0,0.0841]
[1739283643793,0.0011065,97103.0,97094.0,0.0791]
[1739283644000,0.001,97102.0,97094.0,0.0841]
[1739283645354,0.0001065,97103.0,97094.0,0.0791]
[1739283645556,0.154487,97095.0,97094.0,0.0791]
[1739283645761,0.154487,97095.0,97094.0,0.0841]
[1739283645929,0.154487,97095.0,97094.0,0.005]
[1739283646160,0.154489,97094.0,97093.0,0.00066768]
[1739283647169,0.155489,97094.0,97093.0,0.00566768]
[1739283648632,0.155489,97094.0,97076.0,0.154518]